bitfinex/quotes_SOLUSD_20220109
["timestamp","ask_amount","ask_price","bid_price","bid_amount"]
[1641691525295,13.4999,142.95,142.83,0.26]
[1641691525496,10.4999,142.95,142.85,30.77117195]
[1641691526699,0.25,142.94,142.85,30.77117195]
[1641691526998,10.4979,142.94,142.85,30.77117195]
[1641691527397,0.25,142.93,142.85,30.77117195]
[1641691528399,0.51,142.94,142.85,30.77117195]
[1641691528598,11.0083,142.94,142.85,30.77117195]
[1641691529204,3.0,142.93,142.85,30.77117195]
[1641691529399,0.51,142.92,142.85,30.77117195]
[1641691529600,10.4994,142.91,142.85,30.77117195]
[1641691529999,0.25,142.9,142.85,30.77117195]
[1641691530899,0.25,142.92,142.85,30.77117195]
[1641691531101,10.4994,142.9,142.8,8.4]
[1641691531303,18.6834,142.9,142.8,8.4]
[1641691531500,18.6834,142.9,142.76,8.4]
[1641691531501,0.51,142.89,142.76,8.4]
[1641691531701,5.16345313,142.89,142.75,8.4]
[1641691531900,1.65345313,142.88,142.75,8.4]
[1641691532201,3.0,142.87,142.75,8.4]
[1641691532402,3.51,142.87,142.75,8.4]
[1641691533005,20.96445313,142.87,142.74,0.17514892]
[1641691533407,64.0,142.86,142.66,103.1]
[1641691533606,11.4,142.85,142.66,103.1]
[1641691533809,13.56345313,142.85,142.66,103.1]
[1641691534013,1.65345313,142.84,142.66,130.14962918]
[1641691534215,10.5128,142.8,142.66,130.14962918]
[1641691534412,0.51,142.79,142.66,130.14962918]
[1641691534612,3.51,142.79,142.66,130.14962918]
[1641691535012,9.21,142.79,142.66,130.14962918]
[1641691535413,19.7228,142.79,142.66,130.14962918]
[1641691535613,19.4628,142.79,142.67,0.25]
[1641691535819,16.2128,142.79,142.67,8.65]
[1641691536015,76.5522,142.83,142.68,22.79578359]
[1641691536215,8.4,142.87,142.69,36.67627903]
[1641691536443,8.4,142.87,142.69,62.98206262]
[1641691536640,8.4,142.87,142.69,59.47206262]
[1641691536841,1.65345313,142.86,142.69,48.04790977]
[1641691537040,8.4,142.85,142.7,10.7689]
[1641691537240,8.65,142.85,142.7,10.5089]
[1641691537442,4.65345313,142.84,142.69,36.67627903]
[1641691537642,4.65345313,142.84,142.7,0.26]
[1641691537841,0.25,142.83,142.7,0.26]
[1641691538042,10.5083,142.82,142.7,0.26]
[1641691538241,10.5083,142.82,142.69,36.67627903]
[1641691538444,3.25,142.81,142.71,10.5085]
[1641691539046,0.26,142.8,142.72,30.94572441]
[1641691539244,3.26,142.8,142.72,30.94572441]
[1641691539444,0.51,142.79,142.72,30.94572441]
[1641691539846,11.0189,142.79,142.72,30.94572441]
[1641691540047,10.7589,142.79,142.72,30.94572441]
[1641691540646,10.7589,142.79,142.71,10.5085]
[1641691540847,10.7589,142.79,142.67,8.4]
[1641691541048,13.5113,142.78,142.67,8.4]
[1641691541448,0.51,142.77,142.67,8.4]
[1641691541847,0.51,142.77,142.68,25.15518913]
[1641691542048,0.25,142.77,142.68,25.15518913]
[1641691542449,0.51,142.79,142.68,25.15518913]
[1641691542649,0.51,142.79,142.68,35.66618913]
[1641691542953,0.51,142.79,142.68,25.15518913]
[1641691543754,38.0346,142.8,142.69,10.5097]
[1641691543949,38.0346,142.8,142.69,0.26]
[1641691544852,38.0346,142.8,142.71,10.5088]
[1641691545052,3.0,142.8,142.72,27.89877388]
[1641691545251,78.434,142.81,142.73,8.4]
[1641691545451,38.78907635,142.83,142.73,8.66]
[1641691545652,24.2053,142.83,142.73,8.66]
[1641691546453,0.25,142.82,142.73,8.66]
[1641691546655,13.7564,142.82,142.73,19.1673]
[1641691547654,13.7564,142.82,142.73,8.4]
[1641691547856,13.7564,142.82,142.69,8.4]
[1641691548256,10.5106,142.8,142.69,8.4]
[1641691548456,0.51,142.79,142.69,8.4]
[1641691548657,3.51,142.79,142.69,8.4]
[1641691548956,3.51,142.79,142.7,23.48539044]
[1641691549356,0.51,142.79,142.7,23.48539044]
[1641691549558,11.0204,142.79,142.7,33.99499044]
[1641691551566,10.7604,142.79,142.7,33.99499044]
[1641691552264,10.7604,142.79,142.67,8.4]
[1641691552465,13.5113,142.78,142.67,8.4]
[1641691552867,0.51,142.77,142.67,8.4]
[1641691553066,0.51,142.77,142.68,31.92205862]
[1641691553469,26.4249,142.82,142.69,10.7704]
[1641691553668,23.4249,142.82,142.69,8.91]
[1641691553968,23.4249,142.82,142.69,10.56345313]
[1641691554770,0.25,142.81,142.69,10.31345313]
[1641691554969,10.5087,142.8,142.71,10.5088]
[1641691555387,0.51,142.79,142.69,8.66]
[1641691555888,0.25,142.79,142.69,8.66]
[1641691556387,0.51,142.8,142.69,8.66]
[1641691556587,11.0196,142.8,142.7,10.5096]
[1641691556990,3.0,142.79,142.71,22.605348]
[1641691557187,10.7596,142.8,142.71,22.605348]
[1641691557188,0.25,142.8,142.71,22.605348]
[1641691557388,0.25,142.81,142.71,31.005348]
[1641691557587,3.25,142.81,142.71,31.005348]
[1641691557788,10.5082,142.8,142.72,10.7682]
[1641691557987,3.25,142.81,142.73,8.4]
[1641691558490,0.25,142.81,142.74,26.37403217]
[1641691558889,10.7569,142.82,142.74,36.88053217]
[1641691559388,10.7569,142.82,142.74,36.62053217]
[1641691559790,0.25,142.82,142.75,8.4]
[1641691559989,0.25,142.82,142.75,8.66]
[1641691560397,3.25,142.86,142.75,8.66]
[1641691560589,3.0,142.86,142.75,8.66]
[1641691560789,3.0,142.86,142.76,0.25]
[1641691560990,0.26,142.85,142.78,10.5035]
[1641691561190,0.26,142.85,142.79,26.28193547]
[1641691561388,10.5036,142.86,142.79,26.28193547]
[1641691561990,0.25,142.85,142.79,26.28193547]
[1641691562595,0.25,142.85,142.79,8.4]
[1641691562803,10.7556,142.85,142.79,8.4]
[1641691563004,0.25,142.84,142.79,8.4]
[1641691563205,0.25,142.84,142.75,8.4]
[1641691563404,0.25,142.84,142.73,10.5076]
[1641691563603,0.25,142.84,142.73,40.68877392]
[1641691564206,3.26,142.86,142.73,40.68877392]
[1641691564207,35.2742,142.85,142.73,40.68877392]
[1641691564506,3.26,142.84,142.74,10.507]
[1641691564906,0.25,142.83,142.74,10.507]
[1641691565206,0.25,142.83,142.73,30.18117392]
[1641691565609,3.25,142.83,142.73,30.18117392]
[1641691565809,10.5072,142.82,142.7,8.4]
[1641691566010,3.25,142.81,142.7,8.4]
[1641691566210,3.25,142.81,142.67,8.4]
[1641691566414,0.26,142.8,142.67,8.4]
[1641691566612,3.26,142.8,142.67,8.4]
[1641691566810,3.26,142.8,142.68,30.88865012]
[1641691567010,10.761,142.79,142.69,10.5104]
[1641691567411,3.26,142.78,142.69,10.5104]
[1641691567610,0.26,142.78,142.69,10.5104]
[1641691567812,3.25,142.77,142.69,10.5104]
[1641691568012,0.51,142.76,142.69,10.5104]
[1641691568213,11.0207,142.76,142.69,10.5104]
[1641691569115,0.51,142.76,142.69,10.5104]
[1641691569516,3.0,142.79,142.69,8.4]
[1641691569717,137.04868668,142.89,142.71,23.34951227]
[1641691569915,46.4549,142.86,142.72,8.91]
[1641691570115,3.0,142.85,142.72,8.91]
[1641691570315,3.0,142.85,142.72,8.66]
[1641691571017,10.7553,142.84,142.76,10.5055]
[1641691571216,11.0153,142.84,142.76,10.5055]
[1641691571431,10.7653,142.84,142.75,33.77927854]
[1641691572220,10.7653,142.84,142.77,10.5044]
[1641691572624,10.7653,142.84,142.73,43.4156]
[1641691573219,10.7653,142.84,142.75,10.5061]
[1641691573417,0.25,142.83,142.75,10.5061]
[1641691573618,10.5064,142.82,142.75,10.5061]
[1641691574043,0.51,142.81,142.75,10.5061]
[1641691574845,11.0172,142.81,142.72,29.22030072]
[1641691575042,11.0172,142.81,142.63,6.12499514]
[1641691575242,3.0,142.8,142.68,8.4]
[1641691575444,0.51,142.79,142.68,8.4]
[1641691576045,11.0211,142.79,142.68,18.9113]
[1641691576443,3.0,142.78,142.68,18.9113]
[1641691576844,0.51,142.77,142.69,28.51093822]
[1641691577144,10.5112,142.76,142.69,39.02143822]
[1641691577345,3.51,142.77,142.69,28.51093822]
[1641691577543,0.51,142.77,142.69,28.51093822]
[1641691577944,3.51,142.78,142.69,28.51093822]
[1641691578146,0.51,142.78,142.69,28.51093822]
[1641691578345,3.0,142.77,142.69,63.53723822]
[1641691578544,3.25,142.8,142.7,8.4]
[1641691578746,3.25,142.8,142.7,8.66]
[1641691578947,3.25,142.8,142.71,0.25]
[1641691579145,0.25,142.8,142.77,25.57084583]
[1641691579546,0.25,142.82,142.77,25.57084583]
[1641691579947,0.25,142.82,142.76,10.5056]
[1641691580447,0.51,142.82,142.76,10.5056]
[1641691580647,0.25,142.82,142.76,10.5056]
[1641691580948,0.25,142.82,142.76,34.66089339]
[1641691582247,0.51,142.82,142.76,34.66089339]
[1641691583447,0.51,142.82,142.76,10.5056]
[1641691584752,235.0966059,142.89,142.77,26.99735883]
[1641691585051,235.0966059,142.89,142.78,0.25]
[1641691585052,78.3322,142.89,142.78,0.25]
[1641691585257,78.3322,142.89,142.8,25.30153031]
[1641691585453,78.3322,142.89,142.81,8.65]
[1641691585651,79.5674,142.94,142.81,11.65]
[1641691585852,79.5674,142.94,142.88,10.496]
[1641691586052,16.36018668,142.95,142.85,34.9864]
[1641691586253,3.0,142.93,142.81,8.4]
[1641691586451,3.0,142.94,142.81,8.4]
[1641691587252,13.4973,142.94,142.81,8.4]
[1641691587452,0.25,142.93,142.81,8.4]
[1641691587651,0.25,142.93,142.73,199.74]
[1641691587652,8.4,142.92,142.76,8.4]
[1641691587854,65.08908742,142.92,142.75,8.4]
[1641691588059,3.25,142.91,142.75,8.4]
[1641691588253,8.4,142.9,142.75,8.4]
[1641691588455,95.9075,142.89,142.75,8.4]
[1641691588756,107.3075,142.89,142.75,8.4]
[1641691588957,104.3075,142.89,142.75,8.4]
[1641691589154,3.0,142.88,142.75,8.4]
[1641691589355,10.509,142.85,142.75,8.4]
[1641691589555,3.0,142.84,142.75,39.15810794]
[1641691589758,3.51,142.84,142.75,39.15810794]
[1641691589958,0.25,142.83,142.75,8.4]
[1641691590366,3.25,142.83,142.75,8.4]
[1641691590660,10.509,142.82,142.75,8.4]
[1641691590860,0.25,142.81,142.75,8.4]
[1641691591660,10.5079,142.8,142.75,8.4]
[1641691591860,0.25,142.79,142.75,8.4]
[1641691592262,35.0261,142.81,142.75,8.4]
[1641691592463,0.25,142.8,142.75,8.4]
[1641691592864,10.7568,142.8,142.75,8.4]
[1641691593662,0.25,142.8,142.75,8.4]
[1641691593861,10.5057,142.81,142.76,10.5053]
[1641691594062,35.5276,142.85,142.76,10.5053]
[1641691594363,3.0,142.84,142.75,8.4]
[1641691594764,0.51,142.83,142.75,8.4]
[1641691594962,10.5065,142.82,142.75,8.4]
[1641691595365,0.51,142.81,142.75,8.4]
[1641691595966,0.25,142.81,142.75,8.4]
[1641691596567,10.5073,142.8,142.75,8.4]
[1641691597567,0.26,142.79,142.75,8.4]
[1641691597768,10.768,142.79,142.75,8.4]
[1641691598369,0.25,142.78,142.71,8.4]
[1641691598770,0.51,142.81,142.71,18.9092]
[1641691598972,0.51,142.85,142.71,18.9092]
[1641691599170,0.51,142.85,142.71,32.37751511]
[1641691599371,23.7069,142.85,142.71,32.37751511]
[1641691599571,3.0,142.84,142.71,32.37751511]
[1641691599771,13.5059,142.84,142.75,10.5061]
[1641691599971,0.26,142.83,142.75,10.5061]
[1641691600171,0.26,142.83,142.71,32.37751511]
[1641691600371,0.26,142.83,142.72,3.0]
[1641691600573,0.26,142.83,142.74,28.35605355]
[1641691600770,10.5057,142.82,142.74,28.35605355]
[1641691600971,0.26,142.81,142.74,28.35605355]
[1641691601374,10.5057,142.82,142.75,0.26]
[1641691601673,10.5057,142.82,142.75,8.66]
[1641691603574,10.7541,142.83,142.75,8.66]
[1641691603776,23.1969,142.85,142.75,8.66]
[1641691603976,0.25,142.84,142.81,10.5014]
[1641691604376,72.1678,142.89,142.8,27.41241061]
[1641691604675,3.93026929,142.92,142.81,0.26]
[1641691604875,3.93026929,142.92,142.82,8.4]
[1641691605076,3.0,142.91,142.82,8.4]
[1641691605275,3.0,142.91,142.83,0.26]
[1641691605582,121.2003,142.93,142.83,26.14005577]
[1641691605778,156.1975,142.93,142.85,10.4984]
[1641691605977,0.26,142.92,142.83,25.88005577]
[1641691606176,156.1975,142.93,142.83,25.88005577]
[1641691606376,156.1975,142.93,142.82,8.4]
[1641691606577,3.25,142.92,142.82,8.4]
[1641691606776,10.5014,142.91,142.82,8.4]
[1641691606978,3.25,142.9,142.82,8.4]
[1641691607381,0.26,142.89,142.82,8.4]
[1641691607810,3.26,142.89,142.77,64.63144056]
[1641691608012,0.51,142.88,142.78,10.34]
[1641691608612,0.25,142.88,142.78,10.34]
[1641691608811,0.25,142.88,142.8,25.92804335]
[1641691609013,0.25,142.88,142.8,36.00804335]
[1641691609214,35.2519,142.91,142.82,10.5006]
[1641691609613,3.0,142.9,142.82,10.5006]
[1641691609812,3.0,142.9,142.8,10.08]
[1641691610016,0.25,142.89,142.8,10.08]
[1641691610414,11.0156,142.89,142.8,10.08]
[1641691610621,3.0,142.88,142.8,10.08]
[1641691611019,0.51,142.87,142.8,10.08]
[1641691611214,11.0166,142.87,142.8,10.08]
[1641691611617,3.0,142.86,142.8,10.08]
[1641691612016,0.51,142.85,142.73,94.7]
[1641691612416,10.5112,142.82,142.72,10.08]
[1641691612817,3.51,142.81,142.73,28.16710029]
[1641691613217,0.25,142.81,142.73,38.24710029]
[1641691613418,3.0,142.8,142.73,38.24710029]
[1641691613820,10.76,142.79,142.73,38.24710029]
[1641691614021,3.0,142.78,142.73,38.24710029]
[1641691614220,0.25,142.79,142.73,38.24710029]
[1641691614519,3.0,142.78,142.73,38.24710029]
[1641691614720,0.25,142.79,142.74,0.26]
[1641691614921,3.51,142.84,142.74,0.26]
[1641691615622,3.51,142.84,142.73,38.24710029]
[1641691615821,14.0191,142.84,142.73,38.24710029]
[1641691616228,11.0191,142.84,142.74,0.26]
[1641691616623,10.7691,142.84,142.74,0.26]
[1641691616824,14.58216083,142.86,142.75,10.08]
[1641691617026,1.65345313,142.89,142.76,26.15561056]
[1641691617225,3.93026929,142.9,142.77,10.08]
[1641691617426,3.93026929,142.9,142.79,30.59133287]
[1641691617628,0.26,142.89,142.79,40.67133287]
[1641691617826,0.26,142.89,142.8,0.26]
[1641691618228,0.51,142.89,142.79,40.67133287]
[1641691618428,38.5155,142.91,142.79,10.08]
[1641691619058,40.16895313,142.91,142.79,10.08]
[1641691619657,10.5077,142.88,142.79,10.08]
[1641691619858,24.7266,142.9,142.79,10.08]
[1641691620058,5.16345313,142.87,142.79,10.08]
[1641691620258,5.16345313,142.87,142.75,10.08]
[1641691620459,1.65345313,142.86,142.75,10.08]
[1641691620859,14.0178,142.85,142.75,10.08]
[1641691621263,1.65345313,142.84,142.71,10.08]
[1641691621463,10.59,142.83,142.67,14.04087441]
[1641691621660,13.59,142.83,142.67,10.08]
[1641691621862,1.65345313,142.82,142.67,10.08]
[1641691622162,13.5124,142.81,142.67,20.5919]
[1641691622461,1.65345313,142.8,142.67,20.5919]
[1641691622863,3.51,142.79,142.67,10.5119]
[1641691623062,3.51,142.79,142.67,18.9119]
[1641691623362,14.0221,142.79,142.69,25.76184915]
[1641691624764,14.0221,142.79,142.69,36.27204915]
[1641691625064,14.0221,142.79,142.69,25.76184915]
[1641691625265,14.0221,142.79,142.67,8.4]
[1641691625763,14.0221,142.79,142.68,10.5113]
[1641691628665,13.5121,142.79,142.69,8.4]
[1641691628865,13.5121,142.79,142.7,31.13164434]
[1641691629066,13.5121,142.79,142.7,31.39164434]
[1641691629865,13.5121,142.79,142.72,10.5082]
[1641691630065,13.5121,142.79,142.72,18.9082]
[1641691630464,10.5121,142.79,142.72,8.4]
[1641691630864,0.25,142.78,142.72,8.4]
[1641691631064,0.51,142.78,142.72,8.4]
[1641691631269,11.0187,142.78,142.72,8.4]
[1641691631465,11.0187,142.78,142.69,1.97891671]
[1641691631667,17.3867,142.78,142.69,1.97891671]
[1641691632069,19.04015313,142.78,142.69,1.97891671]
[1641691632269,10.5157,142.77,142.69,1.97891671]
[1641691632469,0.51,142.76,142.66,3.96087441]
[1641691632667,8.4,142.75,142.62,1.97891671]
[1641691632868,0.25,142.74,142.62,1.97891671]
[1641691633068,3.51,142.74,142.62,1.97891671]
[1641691633268,5.16345313,142.74,142.62,1.97891671]
[1641691633468,30.13275313,142.74,142.62,1.97891671]
[1641691633867,30.13275313,142.74,142.6,37.78549007]
[1641691633868,40.64955313,142.74,142.6,37.78549007]
[1641691634969,49.04955313,142.74,142.6,37.78549007]
[1641691635769,49.04955313,142.74,142.6,48.30189007]
[1641691635969,47.3961,142.74,142.6,37.78549007]
[1641691636771,47.3961,142.74,142.61,10.5157]
[1641691636972,49.04955313,142.74,142.6,29.38549007]
[1641691638372,48.79955313,142.74,142.61,0.26]
[1641691638573,47.1461,142.74,142.61,0.26]
[1641691638774,47.1461,142.74,142.62,10.5151]
[1641691639172,47.1461,142.74,142.61,0.26]
[1641691639374,48.79955313,142.74,142.6,31.36440678]
[1641691639776,0.25,142.73,142.6,31.36440678]
[1641691639976,35.3175,142.73,142.58,10.37891671]
[1641691640178,1.65345313,142.72,142.58,10.37891671]
[1641691640375,0.25,142.71,142.58,10.37891671]
[1641691640774,0.25,142.71,142.56,12.69231671]
[1641691640975,10.521,142.7,142.58,24.53948664]
[1641691641177,33.7539,142.7,142.58,24.53948664]
[1641691641376,3.51,142.69,142.58,24.53948664]
[1641691641975,14.0283,142.69,142.58,35.05798664]
[1641691643176,14.0283,142.69,142.58,24.53948664]
[1641691644980,14.0283,142.69,142.57,1.97891671]
[1641691644981,15.68175313,142.69,142.57,1.97891671]
[1641691645181,15.68175313,142.69,142.57,4.97891671]
[1641691645384,15.42175313,142.69,142.57,4.97891671]
[1641691645782,15.42175313,142.69,142.57,3.0]
[1641691645984,15.42175313,142.69,142.57,32.78947065]
[1641691646782,10.5203,142.63,142.57,3.0]
[1641691646983,0.51,142.62,142.57,3.0]
[1641691647182,0.51,142.62,142.56,3.0]
[1641691647581,0.25,142.62,142.56,3.0]
[1641691647782,0.25,142.62,142.56,33.88931866]
[1641691648381,0.51,142.65,142.56,33.88931866]
[1641691648582,16.24943687,142.69,142.56,33.88931866]
[1641691648782,14.59598374,142.69,142.57,0.25]
[1641691648983,14.59598374,142.69,142.67,10.512]
[1641691649183,9.08572396,142.76,142.65,27.67106416]
[1641691649384,9.08572396,142.76,142.63,8.4]
[1641691649583,7.31720181,142.76,142.64,35.0363]
[1641691649985,7.31720181,142.76,142.68,10.5109]
[1641691650384,0.25,142.75,142.68,10.5109]
[1641691650784,0.25,142.75,142.64,61.3458427]
[1641691650983,0.25,142.75,142.68,10.5113]
[1641691651185,0.25,142.75,142.64,61.3458427]
[1641691651686,1.90345313,142.75,142.64,61.3458427]
[1641691651892,0.26,142.74,142.64,61.3458427]
[1641691652284,10.7727,142.74,142.66,10.5122]
[1641691652620,0.25,142.73,142.66,10.5122]
[1641691653384,0.25,142.73,142.64,26.3095427]
[1641691653787,27.2049,142.75,142.64,26.3095427]
[1641691653984,23.9449,142.75,142.65,35.0349]
[1641691654184,0.25,142.75,142.65,11.66]
[1641691654384,0.25,142.75,142.71,10.5085]
[1641691654585,1.65345313,142.74,142.6,1.97891671]
[1641691654986,0.25,142.73,142.6,1.97891671]
[1641691655287,4.90345313,142.73,142.6,1.97891671]
[1641691655485,5.16345313,142.73,142.6,30.28922913]
[1641691655686,15.67625313,142.73,142.64,10.5123]
[1641691655886,14.0228,142.73,142.64,10.5123]
[1641691656487,14.0228,142.73,142.6,28.31031242]
[1641691656689,14.0228,142.73,142.63,10.5125]
[1641691656887,13.7728,142.73,142.64,0.26]
[1641691657697,13.7728,142.73,142.62,0.51]
[1641691657890,10.7728,142.73,142.62,0.51]
[1641691658089,10.7728,142.73,142.64,10.5122]
[1641691658490,10.7728,142.73,142.62,0.26]
[1641691658689,0.25,142.72,142.62,0.26]
[1641691658893,10.7621,142.72,142.62,0.26]
[1641691659089,0.25,142.72,142.65,10.5114]
[1641691659290,0.25,142.72,142.62,0.51]
[1641691659589,3.51,142.74,142.62,0.51]
[1641691659789,3.25,142.74,142.62,0.51]
[1641691660118,0.25,142.74,142.62,0.51]
[1641691660318,10.7626,142.74,142.62,0.51]
[1641691661420,0.26,142.73,142.62,0.51]
[1641691661621,10.7726,142.73,142.64,10.5121]
[1641691661922,0.25,142.72,142.65,0.26]
[1641691662924,10.7625,142.72,142.65,0.26]
[1641691663523,10.7625,142.72,142.64,10.5121]
[1641691663524,10.7625,142.72,142.63,12.49181671]
[1641691663728,0.26,142.71,142.62,1.97891671]
[1641691663928,10.5173,142.7,142.62,1.97891671]
[1641691664128,3.0,142.69,142.62,1.97891671]
[1641691664426,3.51,142.69,142.62,1.97891671]
[1641691664627,5.16345313,142.69,142.58,1.97891671]
[1641691665027,15.68235313,142.69,142.58,1.97891671]
[1641691665629,15.68235313,142.69,142.56,10.37891671]
[1641691667329,15.68235313,142.69,142.54,1.97891671]
[1641691667531,10.5213,142.63,142.54,1.97891671]
[1641691667730,16.2073,142.63,142.54,1.97891671]
[1641691667931,3.51,142.62,142.54,1.97891671]
[1641691668330,1.65345313,142.61,142.53,1.97891671]
[1641691668532,13.7826,142.6,142.53,1.97891671]
[1641691668732,19.0296,142.6,142.53,1.97891671]
[1641691669333,140.74,142.59,142.47,9.46369113]
[1641691669632,10.5309,142.53,142.47,1.06369113]
[1641691669831,18.9309,142.53,142.47,1.06369113]
[1641691670031,3.51,142.52,142.47,1.06369113]
[1641691670233,3.51,142.52,142.44,5.94570488]
[1641691670433,0.51,142.52,142.39,8.4]
[1641691670635,10.5302,142.48,142.39,8.4]
[1641691670833,16.2702,142.48,142.39,8.4]
[1641691671034,0.51,142.47,142.39,8.4]
[1641691671333,0.51,142.47,142.37,10.5314]
[1641691671533,10.5329,142.45,142.4,30.79683089]
[1641691671732,35.1085,142.49,142.4,30.79683089]
[1641691671937,0.26,142.48,142.4,30.79683089]
[1641691672735,10.5314,142.47,142.4,30.79683089]
[1641691673333,0.26,142.5,142.35,8.4]
[1641691673334,0.51,142.46,142.35,8.4]
[1641691673737,10.5344,142.42,142.35,8.4]
[1641691673936,0.25,142.46,142.35,8.4]
[1641691674135,0.26,142.48,142.39,10.5314]
[1641691674337,0.26,142.46,142.39,33.46690054]
[1641691674537,0.26,142.48,142.39,33.46690054]
[1641691675443,10.5322,142.45,142.39,33.46690054]
[1641691675846,0.26,142.48,142.39,33.46690054]
[1641691676047,0.25,142.49,142.39,33.46690054]
[1641691676450,0.26,142.49,142.39,33.46690054]
[1641691676645,10.5313,142.47,142.39,33.46690054]
[1641691676846,0.26,142.49,142.39,33.46690054]
[1641691677844,72.7592,142.51,142.39,33.46690054]
[1641691678045,72.7592,142.51,142.44,10.5286]
[1641691678247,72.7592,142.51,142.45,25.43984531]
[1641691678746,24.6689,142.54,142.45,25.43984531]
[1641691678973,24.6689,142.54,142.46,35.0815]
[1641691679376,24.6689,142.54,142.5,10.5244]
[1641691679575,24.6689,142.54,142.45,25.43984531]
[1641691679576,113.4159,142.56,142.45,25.43984531]
[1641691680073,10.5274,142.52,142.45,25.43984531]
[1641691680274,0.51,142.55,142.45,35.96724531]
[1641691680474,0.26,142.55,142.45,35.96724531]
[1641691680673,3.26,142.55,142.45,35.96724531]
[1641691681376,3.0,142.55,142.45,35.96724531]
[1641691681979,10.5284,142.5,142.44,10.5288]
[1641691682479,35.3434,142.54,142.44,10.5288]
[1641691682675,0.25,142.54,142.4,8.4]
[1641691682884,10.5316,142.47,142.4,22.92108801]
[1641691683878,0.25,142.46,142.4,22.92108801]
[1641691684077,10.5327,142.45,142.4,22.92108801]
[1641691684478,35.45785313,142.52,142.4,22.92108801]
[1641691684677,33.8044,142.52,142.4,22.92108801]
[1641691684879,0.25,142.51,142.4,22.92108801]
[1641691685078,0.25,142.51,142.4,33.45278801]
[1641691685480,3.25,142.51,142.4,22.92108801]
[1641691685679,3.25,142.51,142.36,10.11]
[1641691686083,10.37,142.5,142.36,10.11]
[1641691686281,10.5347,142.43,142.36,20.6447]
[1641691686682,10.5347,142.43,142.37,29.15087154]
[1641691687385,10.5331,142.44,142.37,39.68477154]
[1641691687582,272.1821,142.49,142.37,49.79477154]
[1641691687784,195.2785,142.49,142.37,49.79477154]
[1641691687983,0.26,142.48,142.37,49.79477154]
[1641691688784,10.5312,142.47,142.37,49.79477154]
[1641691689186,122.0396,142.49,142.38,0.26]
[1641691689386,3.0,142.51,142.43,22.96944489]
[1641691689585,79.6465,142.53,142.43,22.96944489]
[1641691689787,76.6465,142.53,142.43,22.96944489]
[1641691689985,14.60849391,142.57,142.45,35.0845]
[1641691690186,10.11,142.59,142.44,13.62]
[1641691690386,10.11,142.59,142.5,10.5245]
[1641691690985,45.1936,142.59,142.5,10.5245]
[1641691691387,0.26,142.58,142.5,10.5245]
[1641691691787,45.1936,142.59,142.5,10.5245]
[1641691693095,20.6338,142.59,142.51,10.5238]
[1641691694290,20.6338,142.59,142.49,27.53324472]
[1641691694492,10.5245,142.57,142.49,27.53324472]
[1641691694694,10.5245,142.57,142.47,35.0793]
[1641691694893,0.51,142.56,142.46,10.11]
[1641691695393,0.25,142.56,142.47,10.5263]
[1641691695593,10.5266,142.54,142.47,10.5263]
[1641691695993,0.25,142.56,142.47,10.5263]
[1641691696393,0.51,142.56,142.47,10.5263]
[1641691696793,11.0347,142.56,142.47,10.5263]
[1641691698319,11.0347,142.56,142.46,50.39555225]